bitfinex/quotes_ETHUSD_20250525
["timestamp","ask_amount","ask_price","bid_price","bid_amount"]
[1748180401656,0.7749,2516.9,2516.2,0.4013]
[1748180401829,0.7749,2516.9,2516.4,4.376]
[1748180402355,0.55,2516.8,2516.5,4.376]
[1748180403012,0.55,2516.8,2516.0,0.4013]
[1748180403358,0.55,2516.6,2516.2,4.376]
[1748180403528,4.515,2516.6,2516.2,4.376]
[1748180403733,0.55,2516.4,2516.2,4.376]
[1748180404472,0.55,2516.4,2516.3,4.376]
[1748180405025,0.55,2516.4,2515.2,0.66760729]
[1748180405026,0.55,2516.2,2515.5,0.4013]
[1748180405337,0.59968669,2516.2,2515.8,4.376]
[1748180405536,0.59968669,2516.2,2515.5,0.4013]
[1748180405537,10.8,2516.2,2515.7,4.377]
[1748180405756,0.55,2516.0,2515.7,4.377]
[1748180407063,0.55,2515.8,2515.6,4.377]
[1748180407227,10.8,2515.8,2514.7,8.562]
[1748180407428,0.55,2515.4,2514.5,4.7783]
[1748180407654,0.55,2515.2,2514.5,4.7783]
[1748180407866,1.40284707,2515.2,2514.5,4.7783]
[1748180408266,5.36784707,2515.2,2514.5,4.7783]
[1748180408466,4.91137616,2515.2,2514.5,4.7783]
[1748180411810,4.91337616,2515.2,2514.5,4.7783]
[1748180412115,13.69327616,2515.2,2514.5,4.377]
[1748180412313,23.94327616,2515.2,2514.1,0.4513]
[1748180412617,0.55,2514.8,2514.1,4.461]
[1748180412771,0.55,2514.6,2514.1,4.461]
[1748180412974,0.55,2514.4,2514.1,4.461]
[1748180414179,3.967,2514.4,2514.1,4.461]
[1748180414378,4.4187,2514.4,2514.1,4.461]
[1748180414779,0.55,2514.6,2514.1,4.461]
[1748180414977,3.967,2514.6,2514.2,0.4013]
[1748180416813,3.967,2514.7,2514.2,0.4013]
[1748180416992,0.55,2514.6,2514.2,0.4013]
[1748180417312,0.55,2514.9,2514.2,0.4013]
[1748180417488,0.55,2514.6,2514.2,0.4013]
[1748180417711,0.55,2514.9,2514.2,0.4013]
[1748180417893,0.55,2514.7,2514.2,0.4013]
[1748180418214,1.0568,2514.7,2514.1,0.05]
[1748180418410,1.0568,2514.7,2514.2,4.412]
[1748180419615,0.55,2514.5,2514.2,4.412]
[1748180419827,0.59972046,2514.5,2514.2,4.412]
[1748180420387,0.55,2514.3,2514.2,4.412]
[1748180421501,8.55,2514.3,2513.5,0.4013]
[1748180421715,0.55,2514.1,2513.7,4.412]
[1748180422612,0.59973023,2514.1,2513.7,4.412]
[1748180422791,0.55,2514.1,2513.7,4.412]
[1748180423418,0.59973023,2514.1,2513.7,4.412]
[1748180423786,0.55,2514.1,2513.7,4.412]
[1748180423986,0.64754,2514.0,2513.7,4.412]
[1748180425126,1.40764,2514.0,2513.7,4.412]
[1748180425423,0.55,2513.9,2513.4,8.566]
[1748180425585,0.55,2513.9,2513.5,4.413]
[1748180426822,0.55,2513.7,2513.5,4.413]
[1748180427012,4.519,2513.7,2513.5,4.413]
[1748180427210,0.52791,2513.6,2513.5,4.413]
[1748180427598,8.52791,2513.6,2513.4,8.566]
[1748180427906,0.7601,2513.5,2513.4,8.566]
[1748180428290,9.48245531,2513.6,2513.4,8.566]
[1748180428689,0.55,2513.5,2513.4,8.566]
[1748180428889,2.02615553,2513.5,2513.4,8.566]
[1748180429311,2.02615553,2513.5,2513.2,4.414]
[1748180430029,2.07589636,2513.5,2513.2,4.414]
[1748180430325,8.55,2513.3,2513.1,0.05]
[1748180430529,9.3044,2513.1,2512.2,0.4013]
[1748180430728,0.55,2513.0,2512.2,0.4013]
[1748180430928,4.52,2513.0,2512.2,0.4013]
[1748180431514,3.97,2512.9,2512.2,0.4013]
[1748180431704,0.55,2512.8,2512.2,0.4013]
[1748180432519,0.55,2512.6,2512.1,0.4513]
[1748180433633,3.97,2512.5,2512.1,0.4513]
[1748180434038,0.55,2512.9,2512.1,0.4513]
[1748180434240,1.3044,2513.5,2512.1,0.4513]
[1748180434445,0.55,2513.4,2512.1,0.4513]
[1748180434744,0.55,2513.2,2512.1,0.4513]
[1748180434944,0.855,2513.1,2512.1,0.4513]
[1748180435144,0.55,2512.9,2512.1,0.4513]
[1748180435839,8.55,2513.3,2512.1,0.4513]
[1748180436046,0.55,2512.9,2512.1,0.4513]
[1748180436745,0.55,2513.2,2512.1,0.4513]
[1748180436922,0.55,2513.0,2512.1,0.4513]
[1748180437125,0.55,2512.8,2512.1,0.4513]
[1748180437328,0.55,2512.8,2512.2,4.415]
[1748180438032,3.971,2513.0,2512.3,0.4013]
[1748180438234,0.55,2513.1,2512.3,0.4013]
[1748180438429,0.243,2513.0,2512.3,0.4013]
[1748180439750,4.521,2513.1,2512.3,0.4013]
[1748180440148,0.55,2513.1,2512.3,0.4013]
[1748180441239,1.3044,2513.1,2512.3,0.4013]
[1748180441442,0.04974902,2513.0,2512.4,4.416]
[1748180441642,9.3044,2513.1,2512.4,4.416]
[1748180441838,9.51554,2513.0,2512.4,4.416]
[1748180443266,1.51554,2513.0,2512.4,4.416]
[1748180443438,0.59975332,2512.9,2512.5,4.435]
[1748180443645,0.55,2512.9,2512.5,4.435]
[1748180445456,0.5997532,2512.9,2512.5,4.435]
[1748180445658,0.21152932,2512.8,2512.5,4.435]
[1748180446884,0.55,2512.7,2512.5,4.435]
[1748180450657,3.972,2513.4,2512.6,0.4013]
[1748180450962,8.0,2513.3,2512.6,0.4013]
[1748180451175,0.55,2513.2,2512.6,0.4013]
[1748180451472,8.0,2513.3,2512.6,0.4013]
[1748180451689,1.22779647,2513.6,2512.6,0.4013]
[1748180451992,0.55,2513.1,2512.6,0.4013]
[1748180453171,0.55,2513.5,2512.6,0.4013]
[1748180453372,3.972,2513.4,2512.6,0.4013]
[1748180453797,0.55,2513.3,2512.6,0.4013]
[1748180454090,0.40129647,2513.6,2512.6,0.4013]
[1748180454292,0.55,2513.5,2512.6,0.4013]
[1748180455191,11.0765,2514.1,2512.6,0.4013]
[1748180455192,0.55,2513.8,2512.6,0.4013]
[1748180455372,0.55,2513.5,2512.6,0.4013]
[1748180455987,0.55,2513.9,2512.6,0.4013]
[1748180456190,0.55,2513.6,2512.6,0.4013]
[1748180456763,0.55,2513.6,2512.7,0.37932804]
[1748180456985,0.55,2513.6,2512.8,0.4013]
[1748180458499,0.94383962,2513.6,2512.8,0.4013]
[1748180460598,1.73643962,2513.6,2512.8,0.4013]
[1748180460802,1.37074396,2513.5,2512.8,0.4013]
[1748180461017,0.55,2513.4,2512.8,0.4013]
[1748180461219,0.59973779,2513.4,2512.8,0.4013]
[1748180461384,0.55,2513.4,2512.8,0.4013]
[1748180461983,0.59974525,2513.4,2512.9,4.435]
[1748180462183,0.55,2513.4,2512.9,4.435]
[1748180463323,8.55,2513.4,2512.9,4.435]
[1748180463527,0.55,2513.2,2512.9,4.435]
[1748180465442,0.55,2513.4,2512.9,4.435]
[1748180466903,0.55,2513.4,2513.0,0.4013]
[1748180467108,8.55,2513.4,2513.0,0.4013]
[1748180468502,8.0,2513.4,2513.0,0.4013]
[1748180468707,8.55,2513.5,2513.0,0.4013]
[1748180470734,0.55,2513.5,2513.0,0.4013]
[1748180471142,8.55,2513.6,2513.0,0.4013]
[1748180471443,1.2521,2513.5,2513.0,0.4013]
[1748180472025,8.55,2513.6,2513.0,0.4013]
[1748180472347,8.95409173,2513.6,2513.0,0.4013]
[1748180481565,4.92509173,2513.6,2513.0,0.4013]
[1748180485774,4.92509173,2513.6,2513.1,4.382]
[1748180489464,0.95409173,2513.6,2513.1,4.382]
[1748180491490,1.4466009,2513.6,2513.1,4.382]
[1748180492088,0.95409173,2513.6,2513.1,4.382]
[1748180494865,0.95409173,2513.6,2513.2,4.382]
[1748180495484,1.73059173,2513.6,2513.2,4.382]
[1748180496081,1.73059173,2513.6,2512.4,8.578]
[1748180496082,1.73059173,2513.6,2512.5,0.4013]
[1748180496287,0.55,2513.2,2512.8,4.382]
[1748180496681,4.521,2513.2,2512.8,4.382]
[1748180496990,0.55,2513.0,2512.8,4.382]
[1748180499118,0.95213997,2513.0,2512.8,4.382]
[1748180506889,1.3373,2512.9,2512.8,4.382]
[1748180507488,0.55,2512.9,2512.8,4.382]
[1748180510300,0.55,2512.8,2512.1,4.409]
[1748180510610,8.55,2512.6,2512.1,4.409]
[1748180510914,0.55,2512.4,2512.1,4.409]
[1748180511091,1.321,2512.4,2512.1,4.409]
[1748180511284,0.04975929,2512.3,2512.1,4.409]
[1748180512606,1.321,2512.4,2512.1,4.409]
[1748180512900,0.55,2512.3,2512.1,4.409]
[1748180513101,0.81228594,2512.3,2512.1,4.409]
[1748180514278,4.522,2512.2,2512.1,4.409]
[1748180514815,4.522,2512.2,2512.1,0.05]
[1748180516413,0.55,2512.2,2512.1,0.05]
[1748180516578,0.55,2512.2,2512.1,0.4513]
[1748180517280,3.972,2512.4,2512.1,0.4513]
[1748180517512,3.972,2512.3,2512.1,0.4513]
[1748180518094,0.55,2512.7,2512.1,0.4513]
[1748180518294,3.972,2512.6,2512.1,0.4513]
[1748180518516,0.55,2512.4,2512.1,0.4513]
[1748180518830,4.522,2512.4,2512.1,0.4513]
[1748180520426,3.972,2512.3,2512.1,0.4513]
[1748180522030,0.5997582,2512.7,2512.1,0.4513]
[1748180522226,0.55,2512.3,2512.1,0.4513]
[1748180524230,3.972,2512.4,2512.1,0.4513]
[1748180524937,3.972,2512.5,2512.1,0.4513]
[1748180528338,0.55,2512.7,2512.1,0.4513]
[1748180528515,3.972,2512.6,2512.1,0.4513]
[1748180531029,3.972,2512.7,2512.1,0.4513]
[1748180532034,5.1692,2512.7,2512.1,0.4513]
[1748180532213,0.55,2512.6,2512.1,0.4513]
[1748180532623,0.59975335,2512.6,2512.1,0.4513]
[1748180532828,0.55,2512.6,2512.1,0.4513]
[1748180534343,5.1692,2512.7,2512.1,0.4513]
[1748180534642,3.972,2512.7,2512.1,0.4513]
[1748180536040,0.55,2512.8,2512.1,0.4513]
[1748180536218,4.522,2512.8,2512.1,0.4513]
[1748180536550,0.55,2512.8,2512.1,0.4513]
[1748180536711,10.64277827,2513.0,2512.1,0.4513]
[1748180536915,3.972,2512.8,2512.1,0.4513]
[1748180537924,10.64277827,2513.0,2512.1,0.4513]
[1748180538124,14.61477827,2513.0,2512.1,0.4513]
[1748180539755,10.64277827,2513.0,2512.1,0.4513]
[1748180541355,10.64277827,2513.0,2512.1,0.46104994]
[1748180541532,0.39277827,2513.0,2512.3,0.4013]
[1748180541732,3.972,2513.3,2512.3,0.4013]
[1748180542436,11.972,2513.5,2512.3,0.4013]
[1748180542666,12.36544027,2513.5,2512.3,0.4013]
[1748180543073,0.39344027,2513.5,2512.3,0.4013]
[1748180543371,0.55,2513.6,2512.4,0.4013]
[1748180546070,1.99629145,2513.9,2512.4,0.4013]
[1748180546388,8.0,2513.7,2512.4,0.4013]
[1748180546947,9.54962914,2513.8,2512.4,0.4013]
[1748180547546,8.55,2513.8,2512.4,0.4013]
[1748180549584,0.55,2513.8,2512.4,0.4013]
[1748180550284,0.55,2513.6,2512.3,8.0]
[1748180550590,0.55,2513.6,2512.6,0.4013]
[1748180551876,0.55,2513.6,2512.7,4.356]
[1748180552098,0.55,2513.6,2512.7,4.7573]
[1748180552298,0.04973599,2513.5,2512.7,4.7573]
[1748180553043,0.55,2513.6,2512.7,4.7573]
[1748180553243,0.9383036,2513.5,2512.7,4.7573]
[1748180553690,0.55,2513.4,2512.7,0.4013]
[1748180553849,0.55,2513.4,2512.8,4.356]
[1748180554049,0.55,2513.4,2512.9,4.356]
[1748180556297,0.55,2513.2,2512.9,4.356]
[1748180556503,0.55,2513.2,2513.0,4.356]
[1748180556711,1.16248,2513.1,2513.0,4.356]
[1748180558870,0.55,2513.2,2513.0,4.356]
[1748180559270,10.25,2513.3,2513.1,0.4013]
[1748180560263,10.25,2513.3,2513.0,4.356]
[1748180562200,0.55,2513.4,2513.0,4.356]
[1748180564883,10.25,2513.8,2513.1,0.4013]
[1748180565082,1.22260918,2513.9,2513.1,0.4013]
[1748180565083,10.64780918,2513.9,2513.1,0.4013]
[1748180565318,10.64780918,2513.9,2513.0,4.356]
[1748180565319,0.39780918,2513.9,2513.3,0.4013]
[1748180565516,8.0,2514.0,2513.3,0.4013]
[1748180566085,8.40179474,2514.0,2513.3,0.4013]
[1748180566988,8.98024354,2514.0,2513.3,0.4013]
[1748180567193,1.348,2513.9,2513.3,0.4013]
[1748180567500,1.348,2513.9,2513.4,4.352]
[1748180567687,0.55,2513.9,2513.4,4.352]
[1748180568583,0.5997274,2513.9,2513.4,4.352]
[1748180568790,2.39808619,2514.0,2513.5,0.4013]
[1748180573141,0.40179474,2514.0,2513.5,0.4013]
[1748180573339,0.40179474,2514.0,2513.6,4.351]
[1748180573542,0.04972133,2514.2,2513.6,4.351]
[1748180574701,0.59972126,2514.4,2513.6,4.351]
[1748180574907,1.93248339,2514.4,2513.6,4.351]
[1748180575600,1.88276213,2514.4,2513.6,4.351]
[1748180575800,1.88276213,2514.4,2513.7,0.4013]
[1748180577535,0.55,2514.4,2513.7,0.4013]
[1748180579515,0.9479501,2514.4,2513.7,0.4013]
[1748180589159,0.3979501,2514.4,2513.7,0.4013]
[1748180589448,0.55,2514.6,2513.7,0.4013]
[1748180591050,0.38794643,2514.6,2513.7,0.4013]
[1748180591541,0.6,2514.9,2513.6,4.351]
[1748180591542,0.05,2514.9,2513.9,0.4013]
[1748180591765,0.05,2514.9,2514.0,0.41097832]
[1748180592106,0.4523942,2514.9,2514.0,0.41097832]
[1748180592419,0.05,2514.9,2514.0,0.4013]
[1748180593633,0.05,2514.9,2514.2,0.4013]
[1748180595727,0.05,2514.9,2514.3,4.7513]
[1748180595728,0.44596414,2514.9,2514.3,4.7513]
[1748180595924,0.05,2514.9,2514.3,4.7513]
[1748180596945,0.05,2514.9,2514.3,0.4013]
[1748180597265,0.05,2514.9,2514.4,4.35]
[1748180597672,0.05,2514.9,2514.5,4.345]
[1748180598850,0.05,2514.9,2514.6,0.4013]
[1748180599053,0.05,2514.9,2514.6,0.41097074]
[1748180599271,0.05,2514.9,2514.6,0.4013]
[1748180603036,0.05,2514.9,2514.6,0.397511]
[1748180613789,0.05,2514.9,2514.7,4.344]
[1748180614998,0.05,2514.9,2514.6,0.397511]
[1748180615150,0.05,2514.9,2514.8,4.344]
[1748180618404,0.05,2514.9,2514.2,8.572]
[1748180618405,0.55,2514.8,2514.2,8.572]
[1748180618614,0.55,2514.8,2514.3,4.344]
[1748180618774,1.3072,2514.8,2514.2,8.9695]
[1748180619103,1.3072,2514.8,2514.4,4.344]
[1748180620916,1.3072,2514.8,2514.5,4.344]
[1748180621067,1.3072,2514.8,2514.2,8.9695]
[1748180621263,1.3072,2514.8,2514.3,4.344]
[1748180621895,1.3072,2514.8,2514.2,8.9695]
[1748180622062,1.3072,2514.8,2514.4,4.344]
[1748180622267,1.3072,2514.8,2514.2,8.572]
[1748180622466,0.7523,2514.7,2514.3,4.344]
[1748180624417,0.55,2514.5,2514.3,4.344]
[1748180624618,0.55,2514.5,2514.2,8.572]
[1748180624773,0.55,2514.5,2514.4,4.345]
[1748180626843,1.3023,2514.5,2514.4,4.345]
[1748180627706,1.3023,2514.5,2514.2,8.572]
[1748180627870,1.3023,2514.5,2514.2,12.911]
[1748180631296,1.3023,2514.5,2514.2,4.339]
[1748180631498,5.2713,2514.5,2514.2,4.339]
[1748180631693,0.52713,2514.4,2514.2,4.339]
[1748180639745,0.55,2514.1,2514.0,4.34]
[1748180639901,0.55,2514.1,2513.9,4.34]
[1748180640523,0.55,2514.1,2513.4,0.3975]
[1748180640715,0.55,2514.1,2513.5,4.34]
[1748180642227,1.33,2513.9,2513.5,4.34]
[1748180642610,0.55,2513.7,2513.5,4.34]
[1748180643811,0.55,2513.7,2513.2,8.9705]
[1748180644115,0.55,2513.7,2513.3,4.34]
[1748180644326,0.95340797,2513.7,2513.3,4.34]
[1748180646548,0.40340797,2513.7,2513.4,0.00972341]
[1748180646845,0.777,2514.1,2513.5,0.3975]
[1748180647019,2.2766,2514.1,2513.5,0.3975]
[1748180652228,10.2766,2514.1,2513.5,0.3975]
[1748180652727,9.4996,2514.1,2513.5,0.3975]
[1748180652935,0.55,2514.1,2513.5,0.3975]
[1748180653136,0.55,2514.1,2513.6,0.00970781]
[1748180653347,8.0,2514.2,2513.3,4.34]
[1748180653553,3.97,2514.2,2513.7,0.3975]
[1748180656268,4.502173,2514.2,2513.7,0.3975]
[1748180656474,0.532173,2514.2,2513.7,0.3975]
[1748180656771,0.8246,2514.4,2513.7,0.3975]
[1748180657072,8.0,2514.2,2513.7,0.3975]
[1748180657416,8.0,2514.3,2513.7,0.3975]
[1748180661127,0.8246,2514.4,2513.7,0.3975]
[1748180661365,0.7599,2514.6,2513.8,0.00969819]
[1748180661531,8.0,2514.5,2513.9,0.3975]
[1748180661733,8.0,2514.5,2514.0,4.333]
[1748180661926,9.27289,2514.5,2514.0,4.333]
[1748180662141,4.7289,2514.6,2514.0,4.333]
[1748180662849,0.7599,2514.6,2514.0,4.333]
[1748180663551,0.80961375,2514.6,2514.0,4.333]
[1748180664569,0.7599,2514.6,2514.0,4.333]
[1748180670102,0.55,2514.6,2514.0,4.333]
[1748180670408,2.83602527,2514.6,2514.0,4.333]
[1748180671960,2.83602527,2514.6,2514.1,0.3975]
[1748180672165,2.28602527,2514.6,2514.1,0.3975]
[1748180676514,0.05,2514.9,2514.1,0.3975]
[1748180677011,0.05,2514.9,2514.3,0.3975]
[1748180696515,0.05,2514.9,2514.4,4.323]
[1748180696715,0.05,2514.9,2514.3,0.3975]
[1748180696982,0.05,2514.9,2514.4,4.323]
[1748180697150,0.55,2514.8,2514.1,0.3975]
[1748180697311,0.09970724,2514.9,2514.0,8.573]
[1748180697312,0.55,2514.6,2514.2,4.323]
[1748180698470,0.55,2514.6,2514.2,4.7205]
[1748180699761,0.55,2514.6,2514.2,4.323]
[1748180702170,1.07967,2514.6,2514.2,4.323]
[1748180702669,1.07967,2514.6,2514.3,4.324]
[1748180705681,1.07967,2514.6,2514.4,4.324]
[1748180707388,0.55,2514.6,2514.4,4.324]
[1748180709557,0.55,2514.6,2514.0,8.573]
[1748180709764,0.55,2514.2,2514.1,4.324]
[1748180710402,1.3459,2514.2,2514.1,4.324]
[1748180710892,8.0,2514.5,2514.1,4.324]
[1748180711102,9.825,2514.5,2514.1,4.324]
[1748180713987,0.55,2514.3,2514.1,4.324]
[1748180716659,9.825,2514.5,2514.1,4.324]
[1748180718393,1.825,2514.5,2514.1,4.324]
[1748180718579,0.55,2514.7,2514.1,4.73119377]
[1748180718779,3.969,2514.6,2514.1,4.7215]
[1748180720766,3.969,2514.7,2514.1,4.7215]
[1748180722205,0.55,2514.8,2514.1,4.7215]
[1748180722505,4.519,2514.8,2514.1,4.7215]
[1748180723088,0.04971137,2514.7,2514.2,4.316]
[1748180723295,1.53658251,2514.7,2514.2,4.316]
[1748180723507,1.48687114,2514.7,2514.2,4.316]
[1748180723807,4.519,2514.8,2514.2,4.316]
[1748180726514,10.3,2514.9,2514.2,4.316]
[1748180726688,3.969,2514.8,2514.2,4.316]
[1748180727103,4.019,2514.9,2514.3,0.3975]
[1748180727525,0.05,2514.9,2514.3,0.3975]
[1748180727692,0.6,2514.9,2514.3,0.3975]
[1748180730809,0.05,2514.9,2514.3,0.3975]
[1748180731611,0.55,2514.8,2514.4,4.316]
[1748180731814,0.55,2514.8,2514.5,4.316]
[1748180731989,0.55,2514.8,2514.6,4.315]
[1748180735914,0.05,2514.9,2514.6,4.315]
[1748180736828,0.05,2514.9,2514.7,0.3975]
[1748180739521,0.05,2514.9,2514.5,0.3975]
[1748180739720,0.6,2514.9,2514.8,4.315]
[1748180739889,0.6,2514.9,2514.3,0.3975]
[1748180739890,0.55,2514.8,2514.3,0.3975]
[1748180740090,0.55,2514.8,2514.4,4.315]
[1748180741419,0.05,2514.9,2514.4,4.315]
[1748180741626,0.6,2514.9,2514.4,4.315]
[1748180742627,1.17673826,2514.9,2514.4,4.315]
[1748180742930,1.22644645,2514.9,2514.4,4.315]
[1748180743112,0.55,2514.8,2514.5,4.315]
[1748180743434,0.7915,2514.7,2514.5,4.315]
[1748180745039,0.55,2514.8,2514.5,4.315]
[1748180747238,1.50388394,2514.8,2514.5,4.315]
[1748180749105,0.55,2514.6,2514.1,0.3975]
[1748180749306,0.55,2514.6,2514.2,4.315]
[1748180749630,0.55,2514.6,2514.3,4.315]
[1748180750602,0.55,2514.6,2514.4,4.315]
[1748180752315,0.7575,2514.5,2514.1,4.308]
[1748180752521,3.969,2514.4,2514.1,4.308]
[1748180752720,0.59971671,2514.3,2514.1,4.308]
[1748180753045,0.7575,2514.2,2514.1,4.308]
[1748180753803,0.55,2514.3,2514.1,4.308]
[1748180761937,0.59971985,2514.3,2514.1,4.308]
[1748180762143,0.55,2514.3,2514.1,4.308]
[1748180762583,1.13091217,2514.3,2514.1,4.308]
[1748180764786,0.55,2514.4,2514.1,4.308]
[1748180764946,0.7942,2513.9,2513.3,4.308]
[1748180765145,0.55,2513.7,2513.3,4.308]
[1748180765443,1.3442,2513.5,2513.3,4.308]
[1748180768787,1.3442,2513.5,2512.7,0.3975]
[1748180769089,0.55,2513.3,2513.1,4.309]
[1748180769585,1.08639407,2513.3,2513.1,4.309]
[1748180769961,0.59974072,2513.2,2513.1,4.309]
[1748180770163,0.59974072,2513.2,2512.7,0.3975]
[1748180770361,0.55,2513.2,2512.8,4.309]
[1748180771548,0.7573,2513.9,2512.9,0.3975]
[1748180771751,3.97,2513.8,2512.9,0.3975]
[1748180771979,0.55,2513.5,2512.9,0.3975]
[1748180772353,0.55,2513.5,2513.0,4.309]
[1748180773258,0.4024764,2513.7,2513.0,4.309]
[1748180773458,4.7273,2513.8,2513.0,4.309]
[1748180773459,0.55,2513.6,2513.0,4.309]
[1748180773777,0.55,2513.7,2513.0,4.309]
[1748180774769,3.97,2513.9,2513.1,0.3975]
[1748180774972,4.7273,2514.0,2513.1,0.3975]
[1748180775481,0.55,2513.9,2513.1,0.3975]
[1748180776283,1.07773,2513.9,2513.1,0.3975]
[1748180777272,0.55,2513.9,2513.1,0.3975]
[1748180778890,0.55,2513.9,2513.2,4.31]
[1748180779799,0.8311,2513.7,2513.3,4.31]
[1748180780775,0.55,2513.6,2513.3,4.31]
[1748180783302,0.39428643,2513.7,2513.3,4.7075]
[1748180783498,0.7855,2514.1,2513.3,4.7075]
[1748180783798,6.70164307,2514.1,2513.3,4.7075]
[1748180784098,8.55,2514.0,2513.3,4.7075]
[1748180787162,8.55,2514.0,2513.1,0.3975]
[1748180787163,0.55,2513.8,2513.1,0.3975]
[1748180787474,0.55,2513.8,2513.2,4.304]
[1748180787690,1.48355,2513.8,2513.2,4.304]
[1748180787904,0.55,2513.9,2513.3,0.3975]
[1748180788260,4.52,2513.9,2513.3,0.3975]
[1748180792520,0.55,2513.9,2513.3,0.3975]
[1748180792707,4.52,2513.9,2513.3,0.3975]
[1748180793026,0.55,2513.9,2513.3,0.3975]
[1748180793203,8.0,2514.0,2513.3,0.3975]
[1748180796313,10.25,2514.3,2513.3,0.3975]
[1748180796498,0.55,2514.2,2513.3,0.3975]
[1748180796695,10.25,2514.3,2513.5,0.3975]
[1748180796937,10.25,2514.3,2513.6,0.00969904]
[1748180797260,1.99629145,2514.7,2513.7,0.3975]
[1748180797467,2.63625079,2514.7,2513.7,0.3975]
[1748180798815,1.99629145,2514.6,2513.7,0.3975]
[1748180802258,0.63995934,2514.7,2513.7,0.3975]
[1748180802625,0.55,2514.7,2513.7,0.3975]
[1748180803477,0.55,2514.8,2513.7,0.3975]
[1748180804924,0.05,2514.9,2513.7,0.3975]
[1748180805624,0.05,2514.9,2513.9,0.3975]
[1748180805829,0.05,2514.9,2513.4,3.97]
[1748180805830,0.05,2514.9,2514.0,12.877]
[1748180806061,0.05,2514.9,2514.1,0.3975]
[1748180808756,0.05,2514.9,2514.2,0.3975]
[1748180810461,0.05,2514.9,2514.3,4.302]
[1748180813881,0.55,2514.8,2514.2,0.3975]
[1748180814086,0.55,2514.8,2514.4,4.298]
[1748180817048,1.92774826,2514.8,2514.4,4.298]
[1748180820318,0.05,2514.9,2514.5,0.3975]
[1748180824123,0.05,2514.9,2514.5,8.0]
[1748180824428,0.05,2514.9,2514.6,0.3975]
[1748180833031,0.05,2514.9,2514.7,4.298]
[1748180834155,0.7979,2514.8,2514.7,4.298]
[1748180834650,0.09970069,2514.9,2514.7,4.298]
[1748180834651,0.05,2514.9,2514.7,4.298]
[1748180841256,0.05,2514.9,2514.7,4.6955]
[1748180841558,0.05,2514.9,2514.7,4.298]
[1748180851415,0.05,2514.9,2514.8,0.3975]
[1748180865283,0.05,2514.9,2514.2,0.47229363]
[1748180865284,2.932,2514.7,2514.2,0.47229363]
[1748180865431,0.55,2514.3,2514.2,0.47229363]
[1748180865638,0.2932,2514.6,2513.3,4.295]
[1748180865639,0.55,2514.1,2513.3,4.295]
[1748180865968,0.7881,2514.0,2513.3,4.295]
[1748180867256,0.55,2513.9,2513.4,4.295]
[1748180867575,0.7881,2514.0,2513.4,4.295]
[1748180868177,0.7881,2514.0,2513.0,0.3975]
[1748180868334,1.35845955,2514.0,2513.5,4.295]
[1748180869634,0.7881,2514.0,2513.5,4.295]
[1748180869973,0.7881,2514.0,2513.6,4.295]
[1748180880507,0.7881,2514.0,2513.7,4.389]
[1748180887227,0.39849551,2514.1,2513.7,4.389]
[1748180887411,10.25,2514.6,2513.8,0.0097007]
[1748180887755,0.772,2514.5,2513.7,4.389]
[1748180896860,0.772,2514.5,2513.8,0.3975]
[1748180898908,0.752,2514.8,2513.8,0.3975]
[1748180901030,0.752,2514.8,2513.9,4.388]
[1748180908146,0.752,2514.8,2514.0,0.3975]
[1748180908951,0.752,2514.8,2514.0,8.3975]
[1748180911846,0.752,2514.8,2514.1,4.317]
[1748180912213,0.82180886,2514.7,2514.1,4.317]
[1748180912548,0.7721,2514.5,2514.1,4.317]
[1748180912867,1.3221,2514.2,2514.1,4.317]
[1748180913573,0.55,2514.4,2514.1,4.317]
[1748180913775,0.55,2514.1,2513.6,8.574]
[1748180913974,1.3221,2513.9,2513.8,4.317]
[1748180916933,11.968,2514.3,2513.6,12.892]
[1748180916934,0.55,2514.2,2513.6,12.892]
[1748180917135,1.3227,2513.7,2513.6,12.892]
[1748180919281,0.7727,2513.7,2513.6,12.892]
[1748180920887,0.7555,2514.0,2513.6,12.892]
[1748180928079,0.7555,2514.0,2513.6,13.2895]
[1748180928591,8.7555,2514.2,2513.6,13.2895]
[1748180929106,0.7555,2514.2,2513.6,13.2895]
[1748180929312,8.7555,2514.2,2513.6,13.2895]
[1748180932977,10.12194506,2514.2,2513.7,4.319]
[1748180934436,0.7633,2514.1,2513.7,4.319]
[1748180934937,0.7633,2514.1,2513.6,8.574]
[1748180935124,0.81302388,2514.1,2513.8,4.319]
[1748180935305,0.7633,2514.1,2513.8,4.319]
[1748180935509,1.01297451,2514.0,2513.8,4.319]